[Event "9th RTU Open 2019"]
[Site "Riga"]
[Date "2019.08.06"]
[Round "2.27"]
[White "Kenneskog, Theodor"]
[Black "Lobanov, Sergei"]
[Result "0-1"]
[ECO "D36"]
[WhiteElo "2306"]
[BlackElo "2495"]
[Annotator "ChessBase"]
[PlyCount "125"]
[EventDate "2019.08.05"]
[EventType "swiss"]
[EventCountry "LAT"]
[SourceTitle "playchess.com"]
[Source "ChessBase"]
[SourceQuality "1"]
[TimeControl "5400+30"]

1. d4 {[%emt 0:00:00]} Nf6 {[%emt 0:02:38]} 2. c4 {[%emt 0:00:00]} e6 {[%emt 0:00:07]} 3. Nc3 {[%emt 0:00:00]} d5 {[%emt 0:00:22]} 4. cxd5 {[%emt 0:00:00]} exd5 {[%emt 0:00:04]} 5. Bg5 {[%emt 0:00:00]} Be7 {[%emt 0:00:19]} 6. e3 {[%emt 0:00:04]} O-O {[%emt 0:01:03]} 7. Bd3 {[%emt 0:00:05]} c6 {[%emt 0:00:04]} 8. Qc2 {[%emt 0:00:09]} Nbd7 {[%emt 0:00:20]} 9. Nf3 {[%emt 0:00:07]} Re8 {[%emt 0:01:48]} 10. h3 {[%emt 0:00:06]} h6 {[%emt 0:02:00]} 11. Bf4 {[%emt 0:00:17]} Nf8 {[%emt 0:03:00]} 12. O-O-O {[%emt 0:00:22]} a5 {[%emt 0:01:07]} 13. Kb1 {[%emt 0:00:49]} a4 {[%emt 0:02:41]} 14. g4 {[%emt 0:12:19]} Ne6 {[%emt 0:03:26]} 15. Be5 {[%emt 0:02:23]} b5 {[%emt 0:02:08]} 16. Bxf6 {[%emt 0:02:37]} Bxf6 {[%emt 0:00:12]} 17. h4 {[%emt 0:00:24]} Bd7 {[%emt 0:02:01]} 18. g5 {[%emt 0:06:08]} hxg5 {[%emt 0:02:28]} 19. hxg5 {[%emt 0:00:05]} Nxg5 {[%emt 0:00:37]} 20. Nxg5 {[%emt 0:00:19]} Bxg5 {[%emt 0:00:06]} 21. Bxb5 {[%emt 0:06:58]} cxb5 {[%emt 0:22:11]} 22. Qh7+ {[%emt 0:00:09]} Kf8 {[%emt 0:00:02]} 23. Nxd5 {[%emt 0:37:10]} f6 {[%emt 0:01:33]} 24. Qg6 {[%emt 0:00:11]} Be6 {[%emt 0:00:31]} 25. Rh8+ {[%emt 0:00:19]} Bg8 {[%emt 0:00:06]} 26. e4 {[%emt 0:00:12]} Qd7 {[%emt 0:03:44]} 27. f4 {[%emt 0:09:50]} Qf7 {[%emt 0:00:26]} 28. Qxf7+ {[%emt 0:00:15]} Kxf7 {[%emt 0:00:05]} 29. fxg5 {[%emt 0:00:05]} Rxe4 {[%emt 0:00:16]} 30. gxf6 {[%emt 0:00:25]} gxf6 {[%emt 0:04:34]} 31. Nc3 {[%emt 0:05:53]} Rg4 {[%emt 0:00:11]} 32. Nxb5 {[%emt 0:01:42]} Rb8 {[%emt 0:02:04]} 33. Nd6+ {[%emt 0:01:19]} Kg6 {[%emt 0:03:52]} 34. Rh2 {[%emt 0:04:36]} Bd5 {[%emt 0:01:50]} 35. Ka1 {[%emt 0:02:05]} Rb6 {[%emt 0:03:51]} 36. Nc8 {[%emt 0:00:18]} Re6 {[%emt 0:00:05]} 37. Na7 {[%emt 0:03:44]} Bf3 {[%emt 0:02:37]} 38. Rf1 {[%emt 0:00:59]} Bg2 {[%emt 0:01:30]} 39. Rg1 {[%emt 0:00:59]} Bf3 {[%emt 0:01:06]} 40. Rxg4+ {[%emt 0:00:20]} Bxg4 {[%emt 0:00:01]} 41. Rh1 {[%emt 0:00:14]} f5 {[%emt 0:00:04]} 42. Nb5 {[%emt 0:03:17]} f4 {[%emt 0:00:57]} 43. d5 {[%emt 0:00:56]} Re5 {[%emt 0:01:38]} 44. Nc3 {[%emt 0:00:03]} f3 {[%emt 0:00:16]} 45. Nd1 {[%emt 0:01:38]} Rxd5 {[%emt 0:00:12]} 46. Ne3 {[%emt 0:00:16]} Rd4 {[%emt 0:00:03]} 47. Kb1 {[%emt 0:01:36]} Re4 {[%emt 0:03:42]} 48. Nxg4 {[%emt 0:01:28]} Rxg4 49. Rf1 {[%emt 0:00:04]} Rg3 {[%emt 0:01:07]} 50. Kc2 {[%emt 0:00:04]} Kf5 {[%emt 0:00:03]} 51. b3 {[%emt 0:00:52]} a3 {[%emt 0:02:03]} 52. b4 {[%emt 0:00:55]} Kf4 {[%emt 0:00:06]} 53. b5 {[%emt 0:00:25]} Ke3 {[%emt 0:00:33]} 54. Re1+ {[%emt 0:00:43]} Kf2 {[%emt 0:00:10]} 55. Rb1 {[%emt 0:00:30]} Kg2 {[%emt 0:01:37]} 56. b6 {[%emt 0:00:37]} f2 {[%emt 0:00:18]} 57. b7 {[%emt 0:00:03]} Rg8 {[%emt 0:00:04]} 58. Kb3 {[%emt 0:01:03]} Rb8 {[%emt 0:00:30]} 59. Kxa3 {[%emt 0:00:30]} f1=Q {[%emt 0:00:07]} 60. Rxf1 {[%emt 0:00:08]} Kxf1 {[%emt 0:00:05]} 61. Kb4 {[%emt 0:00:16]} Rxb7+ {[%emt 0:00:04]} 62. Kc4 {[%emt 0:00:19]} Ra7 {[%emt 0:00:05]} 63. Kd4 {[%emt 0:01:03]} 0-1

[Event "9th RTU Open 2019"]
[Site "Riga"]
[Date "2019.08.06"]
[Round "2.28"]
[White "Gagare, Shardul"]
[Black "Maltsevskaya, Aleksandra"]
[Result "1/2-1/2"]
[ECO "E60"]
[WhiteElo "2476"]
[BlackElo "2291"]
[Annotator "ChessBase"]
[PlyCount "141"]
[EventDate "2019.08.05"]
[EventType "swiss"]
[EventCountry "LAT"]
[SourceTitle "playchess.com"]
[Source "ChessBase"]
[SourceQuality "1"]
[TimeControl "5400+30"]

1. Nf3 {[%emt 0:00:00]} Nf6 {[%emt 0:00:00]} 2. g3 {[%emt 0:00:00]} g6 {[%emt 0:00:19]} 3. b3 {[%emt 0:00:16]} Bg7 {[%emt 0:00:10]} 4. Bb2 {[%emt 0:00:07]} O-O {[%emt 0:00:30]} 5. Bg2 {[%emt 0:00:10]} d6 {[%emt 0:00:09]} 6. d4 {[%emt 0:00:27]} e5 {[%emt 0:05:11]} 7. dxe5 {[%emt 0:00:08]} Ng4 {[%emt 0:00:51]} 8. O-O {[%emt 0:00:22]} Nd7 {[%emt 0:00:33]} 9. c4 {[%emt 0:00:37]} Ngxe5 {[%emt 0:01:44]} 10. Nc3 {[%emt 0:00:23]} Nxf3+ {[%emt 0:01:13]} 11. Bxf3 {[%emt 0:00:10]} a5 {[%emt 0:00:41]} 12. Qd2 {[%emt 0:00:25]} Ne5 {[%emt 0:07:18]} 13. Bg2 {[%emt 0:02:43]} a4 {[%emt 0:00:06]} 14. Rad1 {[%emt 0:02:49]} axb3 {[%emt 0:02:53]} 15. axb3 {[%emt 0:00:07]} Re8 {[%emt 0:00:59]} 16. Ra1 {[%emt 0:19:02]} Rxa1 {[%emt 0:03:32]} 17. Rxa1 {[%emt 0:00:57]} h5 {[%emt 0:23:49]} 18. Ra8 {[%emt 0:10:07]} Qd7 {[%emt 0:25:24]} 19. Nd5 {[%emt 0:09:27]} c6 {[%emt 0:09:02]} 20. Nb6 {[%emt 0:02:04]} Qc7 {[%emt 0:00:05]} 21. Nxc8 {[%emt 0:01:36]} Rxc8 {[%emt 0:00:06]} 22. Rxc8+ {[%emt 0:00:13]} Qxc8 {[%emt 0:00:05]} 23. f4 {[%emt 0:01:05]} Ng4 {[%emt 0:00:07]} 24. Bxg7 {[%emt 0:00:15]} Kxg7 {[%emt 0:00:04]} 25. Qxd6 {[%emt 0:00:47]} Qf5 {[%emt 0:00:19]} 26. Qd4+ {[%emt 0:05:30]} Kg8 {[%emt 0:00:36]} 27. Be4 {[%emt 0:07:11]} Qa5 {[%emt 0:01:45]} 28. Bf3 {[%emt 0:02:53]} c5 {[%emt 0:02:16]} 29. Qd1 {[%emt 0:00:11]} Ne3 {[%emt 0:01:05]} 30. Qc1 {[%emt 0:00:09]} Nf5 {[%emt 0:00:06]} 31. Bxb7 {[%emt 0:08:47]} Nd4 {[%emt 0:00:09]} 32. Kf2 {[%emt 0:06:37]} Nxb3 {[%emt 0:04:16]} 33. Qe3 {[%emt 0:00:34]} Nd4 {[%emt 0:00:06]} 34. Qe8+ {[%emt 0:02:23]} Kg7 {[%emt 0:00:05]} 35. Qe5+ {[%emt 0:00:22]} Kg8 {[%emt 0:00:32]} 36. Qb8+ {[%emt 0:04:27]} Kg7 {[%emt 0:02:01]} 37. Bd5 {[%emt 0:00:08]} Nf5 {[%emt 0:03:43]} 38. Qe5+ {[%emt 0:06:52]} Kf8 {[%emt 0:00:31]} 39. Qb8+ {[%emt 0:05:26]} Kg7 {[%emt 0:00:14]} 40. Qb7 {[%emt 0:00:09]} Nh6 {[%emt 0:01:43]} 41. Qb2+ {[%emt 0:00:19]} Kg8 {[%emt 0:00:09]} 42. h3 {[%emt 0:00:41]} Qd8 {[%emt 0:02:31]} 43. Qe5 {[%emt 0:03:29]} Nf5 {[%emt 0:00:08]} 44. e3 {[%emt 0:00:40]} Nd6 {[%emt 0:01:02]} 45. Kf3 {[%emt 0:00:11]} Qd7 {[%emt 0:01:25]} 46. Qf6 {[%emt 0:00:49]} Kf8 {[%emt 0:00:25]} 47. g4 {[%emt 0:00:28]} Ne8 {[%emt 0:02:09]} 48. Qh8+ {[%emt 0:00:30]} Ke7 {[%emt 0:00:05]} 49. Qg8 {[%emt 0:00:52]} hxg4+ {[%emt 0:00:19]} 50. Kg3 {[%emt 0:00:19]} Nd6 {[%emt 0:01:56]} 51. hxg4 {[%emt 0:00:01]} Qa7 {[%emt 0:00:09]} 52. Qg7 {[%emt 0:01:11]} Qa3 {[%emt 0:00:18]} 53. Qe5+ {[%emt 0:00:10]} Kd7 {[%emt 0:00:03]} 54. f5 {[%emt 0:00:48]} gxf5 {[%emt 0:00:11]} 55. gxf5 {[%emt 0:00:05]} Qc1 {[%emt 0:00:36]} 56. f6 {[%emt 0:00:06]} Qe1+ {[%emt 0:00:41]} 57. Kg2 {[%emt 0:00:33]} Qe2+ {[%emt 0:00:07]} 58. Kh3 {[%emt 0:00:46]} Qf1+ {[%emt 0:00:06]} 59. Kh2 {[%emt 0:00:40]} Qf2+ {[%emt 0:01:21]} 60. Bg2 {[%emt 0:00:05]} Nf5 {[%emt 0:00:56]} 61. Qd5+ {[%emt 0:01:10]} Nd6 {[%emt 0:00:04]} 62. Qe5 {[%emt 0:00:19]} Nf5 {[%emt 0:00:11]} 63. Qd5+ {[%emt 0:00:49]} Nd6 {[%emt 0:00:04]} 64. Qc6+ {[%emt 0:00:22]} Ke6 {[%emt 0:00:10]} 65. Qxc5 {[%emt 0:00:04]} Nf5 {[%emt 0:01:38]} 66. Qc6+ {[%emt 0:00:32]} Ke5 {[%emt 0:00:04]} 67. Qe4+ {[%emt 0:01:00]} Kxf6 {[%emt 0:00:05]} 68. c5 {[%emt 0:00:17]} Qg3+ {[%emt 0:00:06]} 69. Kg1 {[%emt 0:00:05]} Qe1+ {[%emt 0:00:15]} 70. Kh2 {[%emt 0:00:05]} Qg3+ {[%emt 0:00:04]} 71. Kg1 {[%emt 0:00:03] Ke5} 1/2-1/2

[Event "9th RTU Open 2019"]
[Site "Riga"]
[Date "2019.08.06"]
[Round "2.29"]
[White "Faibisovich, Vadim Z"]
[Black "Zanan, Evgeny"]
[Result "0-1"]
[ECO "B91"]
[WhiteElo "2302"]
[BlackElo "2486"]
[Annotator "ChessBase"]
[PlyCount "114"]
[EventDate "2019.08.05"]
[EventType "swiss"]
[EventCountry "LAT"]
[SourceTitle "playchess.com"]
[Source "ChessBase"]
[SourceQuality "1"]
[TimeControl "5400+30"]

1. e4 {[%emt 0:00:00]} c5 {[%emt 0:02:56]} 2. Nf3 {[%emt 0:00:00]} d6 {[%emt 0:00:30]} 3. d4 {[%emt 0:03:13]} cxd4 {[%emt 0:02:55]} 4. Nxd4 {[%emt 0:00:09]} Nf6 {[%emt 0:00:05]} 5. Nc3 {[%emt 0:00:33]} a6 {[%emt 0:00:07]} 6. g3 {[%emt 0:01:50]} e5 {[%emt 0:00:24]} 7. Nb3 {[%emt 0:01:02]} Be7 {[%emt 0:00:37]} 8. Bg2 {[%emt 0:00:31]} O-O {[%emt 0:00:34]} 9. O-O {[%emt 0:00:28]} Be6 {[%emt 0:00:18]} 10. Re1 {[%emt 0:03:29]} Nbd7 {[%emt 0:05:19]} 11. Nd2 {[%emt 0:06:29]} b5 {[%emt 0:11:34]} 12. Nf1 {[%emt 0:05:01]} Rc8 {[%emt 0:07:27]} 13. Ne3 {[%emt 0:03:09]} Nb6 {[%emt 0:08:43]} 14. Ncd5 {[%emt 0:12:00]} Nfxd5 {[%emt 0:00:49]} 15. exd5 {[%emt 0:00:27]} Bd7 {[%emt 0:00:08]} 16. c3 {[%emt 0:00:53]} Bg5 {[%emt 0:07:28]} 17. Nc2 {[%emt 0:09:01]} Bxc1 {[%emt 0:01:58]} 18. Rxc1 {[%emt 0:03:40]} Na4 {[%emt 0:05:00]} 19. Rb1 {[%emt 0:00:42]} a5 {[%emt 0:04:01]} 20. Ne3 {[%emt 0:05:52]} Qb6 {[%emt 0:02:35]} 21. Qd2 {[%emt 0:07:57]} f5 {[%emt 0:03:16]} 22. f4 {[%emt 0:01:38]} Rfe8 {[%emt 0:04:38]} 23. Kh1 {[%emt 0:03:41]} b4 {[%emt 0:07:29]} 24. fxe5 {[%emt 0:15:14]} Rxe5 {[%emt 0:00:59]} 25. Bf1 {[%emt 0:06:44]} Qb7 {[%emt 0:08:16]} 26. c4 {[%emt 0:02:17]} Nc5 {[%emt 0:01:55]} 27. Ng2 {[%emt 0:01:18]} Ne4 {[%emt 0:01:06]} 28. Qd4 {[%emt 0:00:45]} Rce8 {[%emt 0:00:11]} 29. Bd3 {[%emt 0:02:44]} Qc7 {[%emt 0:00:55]} 30. Rbc1 {[%emt 0:02:55]} Nc5 {[%emt 0:00:30]} 31. Bc2 {[%emt 0:00:35]} a4 {[%emt 0:02:52]} 32. b3 {[%emt 0:00:42]} Qa5 {[%emt 0:01:05]} 33. Rxe5 {[%emt 0:00:27]} Rxe5 {[%emt 0:02:56]} 34. Re1 {[%emt 0:00:58]} axb3 {[%emt 0:02:44]} 35. axb3 {[%emt 0:00:06]} Rxe1+ {[%emt 0:00:09]} 36. Nxe1 {[%emt 0:00:06]} Qa3 {[%emt 0:01:55]} 37. Qd1 {[%emt 0:00:08]} Ne4 {[%emt 0:02:08]} 38. Bxe4 {[%emt 0:00:43]} fxe4 {[%emt 0:00:01]} 39. Ng2 {[%emt 0:00:19]} Qb2 {[%emt 0:00:33]} 40. Kg1 {[%emt 0:00:20]} Qc3 {[%emt 0:01:01]} 41. Kf2 {[%emt 0:00:17]} Qb2+ {[%emt 0:01:10]} 42. Kg1 {[%emt 0:00:28]} Qc3 {[%emt 0:00:56]} 43. Kf2 {[%emt 0:00:07]} Bh3 {[%emt 0:00:45]} 44. Ne3 {[%emt 0:00:34]} Qf6+ {[%emt 0:00:13]} 45. Ke1 {[%emt 0:01:20]} Qc3+ {[%emt 0:00:38]} 46. Kf2 {[%emt 0:00:09]} Qf6+ {[%emt 0:00:21]} 47. Ke1 {[%emt 0:00:08]} Qb2 {[%emt 0:00:21]} 48. Qh5 {[%emt 0:00:47]} Bd7 {[%emt 0:00:52]} 49. Qg5 {[%emt 0:00:34]} Qb1+ {[%emt 0:00:30]} 50. Kf2 {[%emt 0:00:18]} Qb2+ {[%emt 0:00:24]} 51. Ke1 {[%emt 0:00:29]} Qc3+ {[%emt 0:00:30]} 52. Ke2 {[%emt 0:00:53]} Qd3+ {[%emt 0:00:13]} 53. Kf2 {[%emt 0:00:59]} Qd2+ {[%emt 0:00:29]} 54. Kg1 {[%emt 0:00:39]} h6 {[%emt 0:00:55]} 55. Qf4 {[%emt 0:00:57]} Bh3 {[%emt 0:00:23]} 56. Qf2 {[%emt 0:00:39]} Qc1+ {[%emt 0:00:12]} 57. Nf1 {[%emt 0:00:19]} e3 {[%emt 0:00:37]} 0-1

[Event "9th RTU Open 2019"]
[Site "Riga"]
[Date "2019.08.06"]
[Round "2.30"]
[White "Pultinevicius, Paulius"]
[Black "Degenhard, Simon"]
[Result "1-0"]
[ECO "D62"]
[WhiteElo "2485"]
[BlackElo "2287"]
[Annotator "ChessBase"]
[PlyCount "83"]
[EventDate "2019.08.05"]
[EventType "swiss"]
[EventCountry "LAT"]
[SourceTitle "playchess.com"]
[Source "ChessBase"]
[SourceQuality "1"]
[TimeControl "5400+30"]

1. d4 {[%emt 0:00:00]} Nf6 {[%emt 0:00:00]} 2. c4 {[%emt 0:00:00]} e6 {[%emt 0:00:00]} 3. Nc3 {[%emt 0:00:32]} d5 {[%emt 0:00:00]} 4. Bg5 {[%emt 0:00:16]} Be7 {[%emt 0:00:14]} 5. Nf3 {[%emt 0:00:17]} Nbd7 {[%emt 0:00:33]} 6. e3 {[%emt 0:00:33]} O-O {[%emt 0:00:09]} 7. Qc2 {[%emt 0:01:41]} c5 {[%emt 0:08:36]} 8. cxd5 {[%emt 0:01:57]} Nxd5 {[%emt 0:00:39]} 9. Bxe7 {[%emt 0:00:45]} Qxe7 {[%emt 0:00:29]} 10. Nxd5 {[%emt 0:01:22]} exd5 {[%emt 0:00:09]} 11. dxc5 {[%emt 0:00:07]} Nxc5 {[%emt 0:00:07]} 12. Bd3 {[%emt 0:01:06]} h6 {[%emt 0:07:17]} 13. O-O {[%emt 0:01:09]} Be6 {[%emt 0:01:51]} 14. Nd4 {[%emt 0:07:31]} Rac8 {[%emt 0:02:08]} 15. Rad1 {[%emt 0:01:06]} Bg4 {[%emt 0:13:28]} 16. Be2 {[%emt 0:03:00]} Bxe2 {[%emt 0:09:07]} 17. Qxe2 {[%emt 0:01:23]} Rfd8 {[%emt 0:02:53]} 18. Qf3 {[%emt 0:03:50]} Qe4 {[%emt 0:01:29]} 19. Rd2 {[%emt 0:02:36]} Nd3 {[%emt 0:09:21]} 20. Rfd1 {[%emt 0:08:31]} Ne5 {[%emt 0:00:39]} 21. Qe2 {[%emt 0:00:46]} Nc4 {[%emt 0:03:27]} 22. Rd3 {[%emt 0:01:12]} a6 {[%emt 0:03:55]} 23. h3 {[%emt 0:01:53]} Rd6 {[%emt 0:01:02]} 24. Nf3 {[%emt 0:07:14]} Rcd8 {[%emt 0:07:23]} 25. Rd4 {[%emt 0:00:46]} Qe6 {[%emt 0:00:22]} 26. b3 {[%emt 0:03:36]} Na5 {[%emt 0:02:54]} 27. Qb2 {[%emt 0:06:28]} Nc6 {[%emt 0:01:09]} 28. Rf4 {[%emt 0:04:22]} R6d7 {[%emt 0:02:38]} 29. Rg4 {[%emt 0:01:41]} f5 {[%emt 0:03:16]} 30. Rf4 {[%emt 0:01:09]} g5 {[%emt 0:03:16]} 31. Nd4 {[%emt 0:04:11]} Qg6 {[%emt 0:00:45]} 32. Nxc6 {[%emt 0:00:17]} bxc6 {[%emt 0:00:21]} 33. Ra4 {[%emt 0:00:21]} c5 {[%emt 0:00:43]} 34. Qa3 {[%emt 0:00:45]} c4 {[%emt 0:03:46]} 35. Rxa6 {[%emt 0:00:54]} Qg7 {[%emt 0:00:02]} 36. bxc4 {[%emt 0:01:13]} dxc4 {[%emt 0:00:13]} 37. Rxd7 {[%emt 0:00:32]} Rxd7 {[%emt 0:01:05]} 38. Qc5 {[%emt 0:00:26]} Qf7 {[%emt 0:01:11]} 39. Rxh6 {[%emt 0:00:38]} Kg7 {[%emt 0:02:51]} 40. Rc6 {[%emt 0:00:36]} Ra7 {[%emt 0:00:16]} 41. Qe5+ {[%emt 0:00:31]} Kh7 {[%emt 0:01:05]} 42. Rc8 {[%emt 0:00:08]} 1-0

[Event "9th RTU Open 2019"]
[Site "Riga"]
[Date "2019.08.06"]
[Round "2.31"]
[White "Ramsdal, Jens Albert"]
[Black "Hirneise, Tobias"]
[Result "1/2-1/2"]
[ECO "A46"]
[WhiteElo "2293"]
[BlackElo "2459"]
[Annotator "ChessBase"]
[PlyCount "123"]
[EventDate "2019.08.05"]
[EventType "swiss"]
[EventCountry "LAT"]
[SourceTitle "playchess.com"]
[Source "ChessBase"]
[SourceQuality "1"]
[TimeControl "5400+30"]

1. d4 {[%emt 0:00:00]} Nf6 {[%emt 0:00:56]} 2. Nf3 {[%emt 0:00:00]} e6 {[%emt 0:03:15]} 3. Nbd2 {[%emt 0:02:44]} c5 {[%emt 0:02:37]} 4. e3 {[%emt 0:00:48]} b6 {[%emt 0:01:41]} 5. b3 {[%emt 0:00:34]} Bb7 {[%emt 0:01:02]} 6. Bb2 {[%emt 0:00:07]} Nc6 {[%emt 0:02:47]} 7. Bd3 {[%emt 0:06:13]} d5 {[%emt 0:00:56]} 8. O-O {[%emt 0:00:21]} cxd4 {[%emt 0:02:56]} 9. exd4 {[%emt 0:01:53]} Bd6 {[%emt 0:00:13]} 10. Ne5 {[%emt 0:01:45]} O-O {[%emt 0:01:23]} 11. f4 {[%emt 0:02:13]} Rc8 {[%emt 0:02:06]} 12. c3 {[%emt 0:00:47]} Ne7 {[%emt 0:06:20]} 13. Qe2 {[%emt 0:03:12]} Ng6 {[%emt 0:05:42]} 14. Rf3 {[%emt 0:03:33]} Qe7 {[%emt 0:06:20]} 15. Raf1 {[%emt 0:02:32]} Rc7 {[%emt 0:07:03]} 16. Rh3 {[%emt 0:03:09]} Rfc8 {[%emt 0:02:32]} 17. Bb1 {[%emt 0:02:44]} a6 {[%emt 0:04:19]} 18. Re3 {[%emt 0:15:20]} Re8 {[%emt 0:08:47]} 19. Qf3 {[%emt 0:05:24]} b5 {[%emt 0:02:31]} 20. b4 {[%emt 0:00:10]} Qd8 {[%emt 0:06:52]} 21. Qh3 {[%emt 0:03:41]} Bxe5 {[%emt 0:03:25]} 22. fxe5 {[%emt 0:00:28]} Ne4 {[%emt 0:00:19]} 23. Nxe4 {[%emt 0:03:14]} dxe4 {[%emt 0:00:02]} 24. Qg4 {[%emt 0:01:26]} Bd5 {[%emt 0:02:04]} 25. a3 {[%emt 0:01:34]} Bc4 {[%emt 0:00:59]} 26. Rfe1 {[%emt 0:00:16]} Bd3 {[%emt 0:00:32]} 27. Bxd3 {[%emt 0:00:37]} exd3 {[%emt 0:00:02]} 28. Rxd3 {[%emt 0:00:19]} Qd5 {[%emt 0:01:05]} 29. h4 {[%emt 0:02:32]} h5 {[%emt 0:08:17]} 30. Qg5 {[%emt 0:01:37]} Qb3 {[%emt 0:00:31]} 31. Rd2 {[%emt 0:01:07]} Ne7 {[%emt 0:02:15]} 32. Qxh5 {[%emt 0:05:47]} Rxc3 {[%emt 0:01:18]} 33. Bxc3 {[%emt 0:03:23]} Qxc3 {[%emt 0:00:01]} 34. Qg5 {[%emt 0:01:00]} Qxa3 {[%emt 0:00:53]} 35. h5 {[%emt 0:02:19]} Qxb4 {[%emt 0:01:49]} 36. h6 {[%emt 0:00:51]} Ng6 {[%emt 0:01:18]} 37. hxg7 {[%emt 0:01:43]} Kxg7 {[%emt 0:02:17]} 38. Rf1 {[%emt 0:01:16]} Kg8 {[%emt 0:02:47]} 39. Rd3 {[%emt 0:01:04]} Qc4 {[%emt 0:00:54]} 40. Rff3 {[%emt 0:02:06]} b4 {[%emt 0:01:06]} 41. Qh6 {[%emt 0:02:11]} Rc8 {[%emt 0:02:44]} 42. Kh2 {[%emt 0:03:19]} Qc1 {[%emt 0:00:55]} 43. Rde3 {[%emt 0:00:05]} Rc3 {[%emt 0:03:25]} 44. Qg5 {[%emt 0:03:13]} Rxe3 {[%emt 0:00:17]} 45. Rxe3 {[%emt 0:00:14]} Qc7 {[%emt 0:01:12]} 46. Rg3 {[%emt 0:01:50]} Qd7 {[%emt 0:00:32]} 47. Qd2 {[%emt 0:04:52]} a5 {[%emt 0:00:11]} 48. Rd3 {[%emt 0:00:54]} Qd5 {[%emt 0:00:11]} 49. Re3 {[%emt 0:01:24]} Kg7 {[%emt 0:01:04]} 50. Re1 {[%emt 0:01:28]} Kg8 {[%emt 0:01:38]} 51. Rc1 {[%emt 0:01:27]} Qe4 {[%emt 0:00:28]} 52. Ra1 {[%emt 0:02:23]} b3 {[%emt 0:00:36]} 53. g3 {[%emt 0:02:20]} Qb7 {[%emt 0:00:29]} 54. Qxa5 {[%emt 0:00:20]} Kg7 {[%emt 0:00:27]} 55. Qd2 {[%emt 0:00:18]} Qf3 {[%emt 0:00:23]} 56. Rb1 {[%emt 0:00:21]} Ne7 {[%emt 0:00:40]} 57. Rb2 {[%emt 0:00:42]} Nd5 {[%emt 0:00:18]} 58. Qg5+ {[%emt 0:00:33]} Kf8 {[%emt 0:00:15]} 59. Qd8+ {[%emt 0:00:04]} Kg7 {[%emt 0:00:01]} 60. Qg5+ {[%emt 0:00:06]} Kf8 {[%emt 0:00:05]} 61. Qd8+ {[%emt 0:01:55]} Kg7 {[%emt 0:00:01]} 62. Qg5+ {[%emt 0:00:13]} 1/2-1/2

[Event "9th RTU Open 2019"]
[Site "Riga"]
[Date "2019.08.06"]
[Round "2.32"]
[White "Vogel, Roven"]
[Black "Ratsma, Midas"]
[Result "1-0"]
[ECO "D02"]
[WhiteElo "2456"]
[BlackElo "2275"]
[Annotator "ChessBase"]
[PlyCount "85"]
[EventDate "2019.08.05"]
[EventType "swiss"]
[EventCountry "LAT"]
[SourceTitle "playchess.com"]
[Source "ChessBase"]
[SourceQuality "1"]
[TimeControl "5400+30"]

1. Nf3 {[%emt 0:00:00]} d5 {[%emt 0:03:54]} 2. d4 {[%emt 0:00:00]} e6 {[%emt 0:00:26]} 3. Bf4 {[%emt 0:01:02]} Nf6 {[%emt 0:00:34]} 4. e3 {[%emt 0:00:19]} c5 {[%emt 0:00:36]} 5. Nbd2 {[%emt 0:00:54]} Nc6 {[%emt 0:00:18]} 6. c3 {[%emt 0:01:02]} cxd4 {[%emt 0:00:50]} 7. exd4 {[%emt 0:00:21]} Nh5 {[%emt 0:00:08]} 8. Be3 {[%emt 0:00:22]} Bd6 {[%emt 0:00:18]} 9. Ne5 {[%emt 0:01:25]} g6 {[%emt 0:00:19]} 10. Nd3 {[%emt 0:08:09]} Ng7 {[%emt 0:02:25]} 11. Bf4 {[%emt 0:03:24]} O-O {[%emt 0:03:36]} 12. Be2 {[%emt 0:02:07]} f6 {[%emt 0:05:33]} 13. Bf3 {[%emt 0:11:26]} b6 {[%emt 0:04:29]} 14. O-O {[%emt 0:09:00]} Ba6 {[%emt 0:02:33]} 15. Bxd6 {[%emt 0:01:20]} Qxd6 {[%emt 0:00:04]} 16. Be2 {[%emt 0:00:14]} e5 {[%emt 0:03:21]} 17. dxe5 {[%emt 0:04:22]} fxe5 {[%emt 0:00:14]} 18. a3 {[%emt 0:01:05]} Ne6 {[%emt 0:03:36]} 19. Nb4 {[%emt 0:01:04]} Nxb4 {[%emt 0:02:50]} 20. axb4 {[%emt 0:00:19]} Bb7 {[%emt 0:01:55]} 21. Ba6 {[%emt 0:02:07]} Bxa6 {[%emt 0:01:26]} 22. Rxa6 {[%emt 0:00:02]} Nc7 {[%emt 0:02:49]} 23. Ra1 {[%emt 0:00:56]} a5 {[%emt 0:01:21]} 24. bxa5 {[%emt 0:00:52]} bxa5 {[%emt 0:04:28]} 25. Nc4 {[%emt 0:00:53]} Qe6 {[%emt 0:01:23]} 26. Nxa5 {[%emt 0:00:32]} Qb6 {[%emt 0:01:33]} 27. b4 {[%emt 0:00:57]} e4 {[%emt 0:04:30]} 28. Qd2 {[%emt 0:01:55]} Rad8 {[%emt 0:05:03]} 29. Nb3 {[%emt 0:02:28]} Nb5 {[%emt 0:03:24]} 30. Nd4 {[%emt 0:17:31]} Nxd4 {[%emt 0:01:05]} 31. cxd4 {[%emt 0:00:08]} Rb8 {[%emt 0:04:17]} 32. Rab1 {[%emt 0:00:36]} Rfc8 {[%emt 0:02:16]} 33. b5 {[%emt 0:02:32]} Rc4 {[%emt 0:00:33]} 34. Rfd1 {[%emt 0:00:21]} Rbc8 {[%emt 0:04:10]} 35. h3 {[%emt 0:01:36]} Rc2 {[%emt 0:09:14]} 36. Qg5 {[%emt 0:00:43]} Rd8 {[%emt 0:02:01]} 37. Rdc1 {[%emt 0:01:25]} Rxc1+ {[%emt 0:02:22]} 38. Rxc1 {[%emt 0:00:02]} Qd6 {[%emt 0:02:39]} 39. Rc6 {[%emt 0:00:44]} Qd7 {[%emt 0:00:12]} 40. b6 {[%emt 0:04:45]} Ra8 {[%emt 0:03:44]} 41. Rc7 {[%emt 0:00:29]} Ra1+ {[%emt 0:01:35]} 42. Kh2 {[%emt 0:00:31]} Qd6+ {[%emt 0:00:15]} 43. Qe5 {[%emt 0:00:56]} 1-0